fUST/lending_fUST_20260118
["ID","MTS","AMOUNT","RATE_DAILY","PERIOD"]
[402556119,1768707039441,-1125.83376351,0.00016438,2]
[402556120,1768707039453,-500.0,0.00016438,2]
[402556121,1768707039464,-538.7725108,0.00016438,2]
[402556122,1768707039474,-500.0,0.00016438,2]
[402556123,1768707039484,-500.0,0.00016438,2]
[402556124,1768707039495,-500.68897947,0.00016438,2]
[402556125,1768707039505,-500.0,0.00016438,2]
[402556126,1768707039514,-500.0,0.00016438,2]
[402556127,1768707039526,-500.0,0.00016438,2]
[402556128,1768707039536,-500.0,0.00016438,2]
[402556129,1768707039545,-536.43523099,0.00016438,2]
[402556130,1768707039555,-500.0,0.00016438,2]
[402556131,1768707039564,-1023.55,0.00016438,2]
[402556132,1768707039574,-500.0,0.00016438,2]
[402556133,1768707039583,-812.39,0.00016438,2]
[402556134,1768707039593,-501.24577815,0.00016438,2]
[402556135,1768707039603,-500.0,0.00016438,2]
[402556136,1768707039612,-500.0,0.00016438,2]
[402556137,1768707039622,-500.0,0.00016438,2]
[402556138,1768707039633,-558.73,0.00016438,2]
[402556139,1768707039643,-500.54546542,0.00016438,2]
[402556140,1768707039653,-500.0,0.00016438,2]
[402556141,1768707039663,-500.0,0.00016438,2]
[402556145,1768707039939,-500.0,0.00016438,2]
[402556146,1768707039950,-607.79,0.00016438,2]
[402556147,1768707039961,-500.0,0.00016438,2]
[402556148,1768707039970,-500.85687664,0.00016438,2]
[402556149,1768707039980,-500.0,0.00016438,2]
[402556150,1768707039990,-500.0,0.00016438,2]
[402556151,1768707039999,-500.0,0.00016438,2]
[402556153,1768707040009,-501.08207213,0.00016438,2]
[402556155,1768707040018,-500.0,0.00016438,2]
[402556156,1768707040028,-500.0,0.00016438,2]
[402556157,1768707040038,-500.0,0.00016438,2]
[402556158,1768707040047,-500.0,0.00016438,2]
[402556159,1768707040057,-173.30711951,0.00016438,2]
[402556160,1768707040066,-971.69,0.00016438,2]
[402556161,1768707040076,-500.62769443,0.00016438,2]
[402556162,1768707040086,-500.0,0.00016438,2]
[402556163,1768707040096,-898.84,0.00016438,2]
[402556164,1768707040106,-500.0,0.00016438,2]
[402556165,1768707040117,-500.31553934,0.00016438,2]
[402556166,1768707040127,-500.0,0.00016438,2]
[402556167,1768707040136,-500.0,0.00016438,2]
[402556168,1768707040146,-500.0,0.00016438,2]
[402556169,1768707040156,-500.0,0.00016438,2]
[402556170,1768707040165,-500.0,0.00016438,2]
[402556171,1768707040175,-500.0,0.00016438,2]
[402556172,1768707040184,-500.0,0.00016438,2]
[402556173,1768707040193,-500.0,0.00016438,2]
[402556174,1768707040202,-500.0,0.00016438,2]
[402556175,1768707040211,-500.0,0.00016438,2]
[402556176,1768707040221,-500.0,0.00016438,2]
[402556177,1768707040230,-511.15,0.00016438,2]
[402556178,1768707040240,-500.0,0.00016438,2]
[402556179,1768707040249,-500.0,0.00016438,2]
[402556180,1768707040259,-500.0,0.00016438,2]
[402556182,1768707040268,-500.0,0.00016438,2]
[402556183,1768707040277,-500.0,0.00016438,2]
[402556184,1768707040287,-500.0,0.00016438,2]
[402556185,1768707040296,-500.0,0.00016438,2]
[402556186,1768707040305,-500.0,0.00016438,2]
[402556187,1768707040315,-551.48831723,0.00016438,2]
[402556189,1768707040324,-500.0,0.00016438,2]
[402556190,1768707040333,-500.0,0.00016438,2]
[402556192,1768707040343,-501.360037,0.00016438,2]
[402556194,1768707040352,-582.14,0.00016438,2]
[402556196,1768707040362,-500.0,0.00016438,2]
[402556197,1768707040373,-500.0,0.00016438,2]
[402556198,1768707040382,-629.05,0.00016438,2]
[402556199,1768707040391,-500.0,0.00016438,2]
[402556200,1768707040401,-500.35557243,0.00016438,2]
[402556201,1768707040411,-410.30396756,0.00016438,2]
[402556202,1768707040420,-500.0,0.00016438,2]
[402556203,1768707040429,-500.0,0.00016438,2]
[402556205,1768707040439,-500.0,0.00016438,2]
[402556207,1768707040451,-1641.21587023,0.00016438,2]
[402556209,1768707040460,-500.0,0.00016438,2]
[402556211,1768707040470,-3689.04297232,0.00016438,2]
[402556213,1768707040479,-566.85,0.00016438,2]
[402556215,1768707040490,-501.220575,0.00016438,2]
[402556217,1768707040499,-472.69014883,0.00016438,2]
[402556219,1768707040509,-800.02,0.00016438,2]
[402556221,1768707040521,-500.0,0.00016438,2]
[402556223,1768707040530,-584.7451168,0.00016438,2]
[402556225,1768707040540,-541.97,0.00016438,2]
[402556227,1768707040549,-500.0,0.00016438,2]
[402556229,1768707040560,-2336.64148673,0.00016438,2]
[402556231,1768707040571,-500.0,0.00016438,2]
[402556233,1768707040581,-500.0,0.00016438,2]
[402556235,1768707040591,-500.0,0.00016438,2]
[402556237,1768707040601,-500.0,0.00016438,2]
[402556239,1768707040611,-500.0,0.00016438,2]
[402556241,1768707040620,-500.0,0.00016438,2]
[402556243,1768707040630,-526.88382228,0.00016438,2]
[402556245,1768707040640,-500.0,0.00016438,2]
[402556247,1768707040650,-500.0,0.00016438,2]
[402556249,1768707040661,-500.45914604,0.00016438,2]
[402556251,1768707040670,-250.02162396,0.00016438,2]
[402556253,1768707040680,-500.0,0.00016438,2]
[402556255,1768707040689,-500.0,0.00016438,2]
[402556257,1768707040699,-530.01,0.00016438,2]
[402556258,1768707040708,-500.36314683,0.00016438,2]
[402556259,1768707040717,-524.48,0.00016438,2]
[402556260,1768707040726,-500.0,0.00016438,2]
[402556261,1768707040735,-500.0,0.00016438,2]
[402556262,1768707040743,-500.39804758,0.00016438,2]
[402556263,1768707040752,-500.0,0.00016438,2]
[402556264,1768707040761,-500.0,0.00016438,2]
[402556265,1768707040770,-500.0,0.00016438,2]
[402556266,1768707040779,-972.64,0.00016438,2]
[402556268,1768707040788,-500.0,0.00016438,2]
[402556270,1768707040798,-500.0,0.00016438,2]
[402556271,1768707040807,-500.0,0.00016438,2]
[402556273,1768707040816,-500.0,0.00016438,2]
[402556276,1768707040827,-500.0,0.00016438,2]
[402556278,1768707040836,-500.0,0.00016438,2]
[402556280,1768707040845,-500.0,0.00016438,2]
[402556282,1768707040854,-500.0,0.00016438,2]
[402556284,1768707040863,-500.0,0.00016438,2]
[402556286,1768707040871,-500.0,0.00016438,2]
[402556288,1768707040880,-500.0,0.00016438,2]
[402556290,1768707040889,-500.0,0.00016438,2]
[402556292,1768707040899,-732.0,0.00016438,2]
[402556294,1768707040908,-1106.34,0.00016438,2]
[402556296,1768707040917,-500.86439627,0.00016438,2]
[402556298,1768707040927,-500.0,0.00016438,2]
[402556300,1768707040935,-501.15758083,0.00016438,2]
[402556302,1768707040945,-500.0,0.00016438,2]
[402556304,1768707040954,-500.0,0.00016438,2]
[402556306,1768707040963,-500.0,0.00016438,2]
[402556308,1768707040972,-488.28807253,0.00016438,2]
[402556310,1768707040982,-500.0,0.00016438,2]
[402556312,1768707040991,-500.0,0.00016438,2]
[402556314,1768707041000,-500.0,0.00016438,2]
[402556316,1768707041010,-501.38665735,0.00016438,2]
[402556318,1768707041020,-500.0,0.00016438,2]
[402556320,1768707041029,-756.25,0.00016438,2]
[402556322,1768707041038,-500.0,0.00016438,2]
[402556324,1768707041049,-500.0,0.00016438,2]
[402556326,1768707041059,-500.0,0.00016438,2]
[402556328,1768707041068,-500.0,0.00016438,2]
[402556330,1768707041078,-500.0,0.00016438,2]
[402556332,1768707041087,-500.0,0.00016438,2]
[402556334,1768707041097,-500.0,0.00016438,2]
[402556336,1768707041106,-510.94247285,0.00016438,2]
[402556338,1768707041117,-500.0,0.00016438,2]
[402556340,1768707041126,-622.13,0.00016438,2]
[402556342,1768707041135,-501.4529367,0.00016438,2]
[402556344,1768707041145,-500.0,0.00016438,2]
[402556346,1768707041154,-825.76,0.00016438,2]
[402556348,1768707041163,-500.0,0.00016438,2]
[402556350,1768707041172,-500.4096594,0.00016438,2]
[402556352,1768707041182,-500.0,0.00016438,2]
[402556354,1768707041192,-551.16,0.00016438,2]
[402556355,1768707041206,-500.44628098,0.00016438,2]
[402556358,1768707041220,-500.0,0.00016438,2]
[402556359,1768707041235,-500.0,0.00016438,2]
[402556362,1768707041244,-500.87691602,0.00016438,2]
[402556364,1768707041254,-500.0,0.00016438,2]
[402556366,1768707041264,-500.0,0.00016438,2]
[402556368,1768707041273,-636.41,0.00016438,2]
[402556370,1768707041282,-500.0,0.00016438,2]
[402556372,1768707041292,-501.01605601,0.00016438,2]
[402556374,1768707041302,-500.0,0.00016438,2]
[402556376,1768707041311,-533.5526369,0.00016438,2]
[402556378,1768707041320,-500.0,0.00016438,2]
[402556380,1768707041330,-566.56689578,0.00016438,2]
[402556382,1768707041339,-584.91564308,0.00016438,2]
[402556384,1768707041348,-993.56,0.00016438,2]
[402556386,1768707041357,-500.0,0.00016438,2]
[402556388,1768707041367,-500.0,0.00016438,2]
[402556390,1768707041375,-843.05,0.00016438,2]
[402556391,1768707041384,-500.0,0.00016438,2]
[402556394,1768707041394,-500.0,0.00016438,2]
[402556396,1768707041405,-501.70460393,0.00016438,2]
[402556398,1768707041414,-500.0,0.00016438,2]
[402556400,1768707041424,-500.0,0.00016438,2]
[402556402,1768707041433,-500.0,0.00016438,2]
[402556404,1768707041442,-578.30341128,0.00016438,2]
[402556406,1768707041455,-855.04,0.00016438,2]
[402556408,1768707041465,-500.0,0.00016438,2]
[402556410,1768707041474,-1119.92,0.00016438,2]
[402556412,1768707041483,-675.98,0.00016438,2]
[402556414,1768707041494,-500.0,0.00016438,2]
[402556416,1768707041504,-248.8,0.00016438,2]
[402556418,1768707041513,-151.0,0.00016438,2]
[402556420,1768707041523,-152.464525,0.00016438,2]
[402556422,1768707041532,-194.0,0.00016438,2]
[402556424,1768707041541,-500.0,0.00016438,2]
[402556426,1768707041551,-500.0,0.00016438,2]
[402556428,1768707041560,-500.0,0.00016438,2]
[402556430,1768707041569,-267.46520157,0.00016438,2]
[402556432,1768707041579,-151.0,0.00016438,2]
[402556434,1768707041588,-151.0,0.00016438,2]
[402556436,1768707041597,-151.0,0.00016438,2]
[402556438,1768707041607,-151.0,0.00016438,2]
[402556440,1768707041616,-150.07125105,0.00016438,2]
[402556442,1768707041626,-348.0,0.0001645,2]
[402556444,1768707041635,-348.0,0.0001645,2]
[402556446,1768707041644,-348.0,0.0001645,2]
[402556448,1768707041653,-348.0,0.0001645,2]
[402556449,1768707041662,-348.0,0.0001645,2]
[402556451,1768707041671,-348.0,0.0001645,2]
[402556453,1768707041680,-348.0,0.0001645,2]
[402556455,1768707041690,-348.0,0.0001645,2]
[402556457,1768707041699,-348.0,0.0001645,2]
[402556459,1768707041708,-348.0,0.0001645,2]
[402556461,1768707041717,-348.0,0.0001645,2]
[402556463,1768707041726,-348.0,0.0001645,2]
[402556465,1768707041735,-348.0,0.0001645,2]
[402556467,1768707041745,-348.0,0.0001645,2]
[402556469,1768707041755,-348.0,0.0001645,2]
[402556471,1768707041764,-348.0,0.0001645,2]
[402556473,1768707041774,-348.0,0.0001645,2]
[402556475,1768707041783,-348.0,0.0001645,2]
[402556477,1768707041792,-348.0,0.0001645,2]
[402556479,1768707041802,-348.0,0.0001645,2]
[402556481,1768707041811,-348.0,0.0001645,2]
[402556483,1768707041821,-348.0,0.0001645,2]
[402556485,1768707041830,-348.0,0.0001645,2]
[402556487,1768707041839,-348.0,0.0001645,2]
[402556489,1768707041848,-348.0,0.0001645,2]
[402556491,1768707041858,-348.0,0.0001645,2]
[402556493,1768707041867,-348.0,0.0001645,2]
[402556495,1768707041877,-348.0,0.0001645,2]
[402556498,1768707041886,-348.0,0.0001645,2]
[402556499,1768707041896,-348.0,0.0001645,2]
[402556501,1768707041905,-348.0,0.0001645,2]
[402556504,1768707041915,-348.0,0.0001645,2]
[402556506,1768707041924,-348.0,0.0001645,2]
[402556508,1768707041933,-348.0,0.0001645,2]
[402556510,1768707041943,-348.0,0.0001645,2]
[402556512,1768707041952,-348.0,0.0001645,2]
[402556514,1768707041961,-348.0,0.0001645,2]
[402556516,1768707041971,-313.060542,0.0001645,2]
[402556518,1768707041980,-313.060542,0.0001645,2]
[402556520,1768707041989,-440.953799,0.0001645,2]
[402556521,1768707041999,-313.060542,0.0001645,2]
[402556524,1768707042008,-440.953799,0.0001645,2]
[402556526,1768707042022,-313.060542,0.0001645,2]
[402556528,1768707042031,-440.953799,0.0001645,2]
[402556530,1768707042041,-440.953799,0.0001645,2]
[402556532,1768707042050,-166.0,0.00016464,2]
[402556534,1768707042060,-348.0,0.00016464,2]
[402556536,1768707042069,-348.0,0.00016464,2]
[402556538,1768707042078,-270.2703129,0.00016464,2]
[402556540,1768707042087,-176.0,0.00016464,2]
[402556542,1768707042097,-158.0,0.00016464,2]
[402556544,1768707042107,-158.0,0.00016464,2]
[402556546,1768707042117,-166.0,0.00016464,2]
[402556548,1768707042126,-158.0,0.00016464,2]
[402556550,1768707042135,-166.0,0.00016464,2]
[402556552,1768707042144,-172.0,0.00016464,2]
[402556554,1768707042153,-166.0,0.00016464,2]
[402556556,1768707042163,-166.0,0.00016464,2]
[402556558,1768707042173,-168.0,0.00016464,2]
[402556560,1768707042183,-168.0,0.00016464,2]
[402556562,1768707042193,-169.08533091,0.00016464,2]
[402556564,1768707042202,-1083.68083093,0.00016465,2]
[402556566,1768707042211,-348.0,0.00016489,2]
[402556568,1768707042220,-166.0,0.00016489,2]
[402556570,1768707042230,-153.0,0.00016489,2]
[402556572,1768707042240,-166.0,0.00016489,2]
[402556574,1768707042249,-348.0,0.00016489,2]
[402556576,1768707042259,-153.0,0.00016489,2]
[402556578,1768707042268,-153.0,0.00016489,2]
[402556581,1768707042278,-348.0,0.00016489,2]
[402556583,1768707042288,-153.0,0.00016489,2]
[402556585,1768707042297,-348.0,0.00016489,2]
[402556587,1768707042306,-153.0,0.00016489,2]
[402556589,1768707042316,-164.0,0.00016489,2]
[402556591,1768707042325,-166.0,0.00016489,2]
[402556593,1768707042335,-153.0,0.00016489,2]
[402556600,1768707042393,-153.0,0.00016489,2]
[402556602,1768707042403,-153.0,0.00016489,2]
[402556604,1768707042413,-153.0,0.00016489,2]
[402556606,1768707042423,-153.0,0.00016489,2]
[402556608,1768707042435,-153.0,0.00016489,2]
[402556610,1768707042443,-176.0,0.00016489,2]
[402556612,1768707042452,-153.0,0.00016489,2]
[402556614,1768707042462,-269.46740087,0.00016489,2]
[402556616,1768707042473,-178.98346609,0.00016489,2]
[402556618,1768707042482,-153.0,0.00016489,2]
[402556620,1768707042492,-153.0,0.00016489,2]
[402556622,1768707042501,-348.0,0.00016489,2]
[402556624,1768707042511,-153.0,0.00016489,2]
[402556626,1768707042520,-166.0,0.00016489,2]
[402556628,1768707042529,-168.80155798,0.00016489,2]
[402556630,1768707042542,-348.0,0.00016489,2]
[402556632,1768707042551,-166.0,0.00016489,2]
[402556634,1768707042560,-153.0,0.00016489,2]
[402556636,1768707042570,-348.0,0.00016489,2]
[402556638,1768707042579,-153.0,0.00016489,2]
[402556640,1768707042589,-172.0,0.00016489,2]
[402556642,1768707042599,-348.0,0.00016489,2]
[402556644,1768707042608,-153.0,0.00016489,2]
[402556646,1768707042618,-348.0,0.00016489,2]
[402556648,1768707042627,-153.0,0.00016489,2]
[402556650,1768707042637,-151.0,0.00016489,2]
[402556652,1768707042646,-348.0,0.00016489,2]
[402556654,1768707042655,-153.0,0.00016489,2]
[402556656,1768707042664,-151.0,0.00016489,2]
[402556658,1768707042674,-348.0,0.00016489,2]
[402556660,1768707042684,-151.0,0.00016489,2]
[402556662,1768707042693,-153.0,0.00016489,2]
[402556664,1768707042703,-348.0,0.00016489,2]
[402556666,1768707042713,-151.0,0.00016489,2]
[402556668,1768707042723,-153.0,0.00016489,2]
[402556670,1768707042732,-348.0,0.00016489,2]
[402556673,1768707042741,-151.0,0.00016489,2]
[402556675,1768707042751,-153.0,0.00016489,2]
[402556676,1768707042760,-348.0,0.00016489,2]
[402556679,1768707042770,-151.0,0.00016489,2]
[402556680,1768707042779,-153.0,0.00016489,2]
[402556683,1768707042789,-158.0,0.00016489,2]
[402556684,1768707042798,-348.0,0.00016489,2]
[402556686,1768707042806,-151.0,0.00016489,2]
[402556688,1768707042815,-153.0,0.00016489,2]
[402556690,1768707042824,-158.0,0.00016489,2]
[402556692,1768707042832,-348.0,0.00016489,2]
[402556694,1768707042842,-153.0,0.00016489,2]
[402556696,1768707042851,-151.0,0.00016489,2]
[402556698,1768707042860,-158.0,0.00016489,2]
[402556700,1768707042869,-348.0,0.00016489,2]
[402556702,1768707042879,-153.0,0.00016489,2]
[402556704,1768707042889,-151.0,0.00016489,2]
[402556707,1768707042899,-158.0,0.00016489,2]
[402556709,1768707042908,-348.0,0.00016489,2]
[402556711,1768707042918,-151.0,0.00016489,2]
[402556713,1768707042928,-153.0,0.00016489,2]
[402556715,1768707042937,-158.0,0.00016489,2]
[402556717,1768707042947,-348.0,0.00016489,2]
[402556720,1768707042957,-151.0,0.00016489,2]
[402556722,1768707042966,-153.0,0.00016489,2]
[402556723,1768707042976,-158.0,0.00016489,2]
[402556726,1768707042986,-348.0,0.00016489,2]
[402556728,1768707042995,-151.0,0.00016489,2]
[402556729,1768707043005,-153.0,0.00016489,2]
[402556732,1768707043015,-348.0,0.00016489,2]
[402556734,1768707043024,-151.0,0.00016489,2]
[402556736,1768707043033,-153.0,0.00016489,2]
[402556738,1768707043042,-348.0,0.00016489,2]
[402556740,1768707043052,-158.0,0.00016489,2]
[402556741,1768707043061,-151.0,0.00016489,2]
[402556743,1768707043070,-153.0,0.00016489,2]
[402556745,1768707043080,-348.0,0.00016489,2]
[402556748,1768707043091,-158.0,0.00016489,2]
[402556750,1768707043100,-151.0,0.00016489,2]
[402556752,1768707043109,-153.0,0.00016489,2]
[402556754,1768707043118,-348.0,0.00016489,2]
[402556756,1768707043128,-158.0,0.00016489,2]
[402556758,1768707043137,-151.0,0.00016489,2]
[402556760,1768707043147,-153.0,0.00016489,2]
[402556761,1768707043159,-158.0,0.00016489,2]
[402556764,1768707043170,-348.0,0.00016489,2]
[402556765,1768707043179,-152.23690011,0.00016489,2]
[402556767,1768707043189,-153.0,0.00016489,2]
[402556769,1768707043199,-167.78852476,0.00016489,2]
[402556771,1768707043208,-348.0,0.00016489,2]
[402556773,1768707043218,-153.0,0.00016489,2]
[402556775,1768707043227,-348.0,0.00016489,2]
[402556777,1768707043238,-153.0,0.00016489,2]
[402556779,1768707043247,-348.0,0.00016489,2]
[402556782,1768707043258,-153.0,0.00016489,2]
[402556784,1768707043268,-348.0,0.00016489,2]
[402556785,1768707043278,-153.0,0.00016489,2]
[402556788,1768707043287,-348.0,0.00016489,2]
[402556790,1768707043297,-175.11487192,0.00016489,2]
[402556792,1768707043307,-12952.11988185,0.000165,2]
[402556794,1768707043318,-778.0,0.000165,2]
[402556796,1768707043328,-257.8955448,0.000165,2]
[402556798,1768707043339,-151.0,0.000166,2]
[402556800,1768707043348,-1498.85,0.00016634,2]
[402556802,1768707043358,-264.0,0.00016636,2]
[402556804,1768707043368,-264.0,0.00016648,2]
[402556805,1768707043377,-168.0,0.00016672,2]
[402556808,1768707043387,-174.61919141,0.00016685,2]
[402556810,1768707043398,-264.0,0.00016686,2]
[402556812,1768707043408,-291.0,0.00016695,2]
[402556814,1768707043419,-281.0,0.000167,2]
[402556816,1768707043429,-1866.93707592,0.000167,2]
[402556817,1768707043439,-264.0,0.0001671,2]
[402556820,1768707043451,-500.0,0.00016712,2]
[402556822,1768707043462,-500.0,0.00016712,2]
[402556823,1768707043473,-500.0,0.00016712,2]
[402556825,1768707043484,-500.0,0.00016712,2]
[402556827,1768707043494,-501.20399662,0.00016712,2]
[402556829,1768707043503,-500.0,0.00016712,2]
[402556831,1768707043513,-500.0,0.00016712,2]
[402556833,1768707043523,-501.02850784,0.00016712,2]
[402556835,1768707043533,-500.0,0.00016712,2]
[402556837,1768707043543,-500.96470457,0.00016712,2]
[402556839,1768707043552,-500.0,0.00016712,2]
[402556841,1768707043562,-1023.55,0.00016712,2]
[402556843,1768707043572,-500.43860507,0.00016712,2]
[402556845,1768707043581,-812.39,0.00016712,2]
[402556847,1768707043592,-500.0,0.00016712,2]
[402556849,1768707043605,-500.0,0.00016712,2]
[402556851,1768707043615,-291.23431375,0.00016712,2]
[402556854,1768707043625,-558.73,0.00016712,2]
[402556857,1768707043635,-500.72810541,0.00016712,2]
[402556860,1768707043645,-500.50831284,0.00016712,2]
[402556863,1768707043655,-500.0,0.00016712,2]
[402556865,1768707043664,-500.0,0.00016712,2]
[402556867,1768707043674,-500.0,0.00016712,2]
[402556869,1768707043684,-500.0,0.00016712,2]
[402556871,1768707043693,-500.0,0.00016712,2]
[402556873,1768707043703,-500.0,0.00016712,2]
[402556875,1768707043713,-500.0,0.00016712,2]
[402556877,1768707043724,-500.58552207,0.00016712,2]
[402556879,1768707043734,-500.0,0.00016712,2]
[402556881,1768707043745,-971.69,0.00016712,2]
[402556883,1768707043754,-500.0,0.00016712,2]
[402556885,1768707043763,-898.84,0.00016712,2]
[402556886,1768707043772,-501.15257211,0.00016712,2]
[402556888,1768707043781,-500.0,0.00016712,2]
[402556890,1768707043791,-500.0,0.00016712,2]
[402556892,1768707043801,-596.59080957,0.00016712,2]
[402556894,1768707043810,-500.0,0.00016712,2]
[402556896,1768707043821,-500.0,0.00016712,2]
[402556898,1768707043831,-500.81528413,0.00016712,2]
[402556900,1768707043842,-500.0,0.00016712,2]
[402556902,1768707043852,-501.4679686,0.00016712,2]
[402556904,1768707043862,-500.0,0.00016712,2]
[402556907,1768707043872,-501.02723907,0.00016712,2]
[402556908,1768707043882,-500.0,0.00016712,2]
[402556911,1768707043892,-511.15,0.00016712,2]
[402556912,1768707043902,-500.9300772,0.00016712,2]
[402556914,1768707043912,-500.0,0.00016712,2]
[402556917,1768707043923,-500.0,0.00016712,2]
[402556919,1768707043933,-500.0,0.00016712,2]
[402556921,1768707043943,-500.0,0.00016712,2]
[402556922,1768707043952,-500.0,0.00016712,2]
[402556925,1768707043962,-500.0,0.00016712,2]
[402556927,1768707043974,-500.0,0.00016712,2]
[402556929,1768707043983,-500.78595809,0.00016712,2]
[402556931,1768707043993,-500.0,0.00016712,2]
[402556933,1768707044004,-582.14,0.00016712,2]
[402556935,1768707044015,-392.54681722,0.00016712,2]
[402556937,1768707044025,-500.0,0.00016712,2]
[402556938,1768707044034,-629.05,0.00016712,2]
[402556940,1768707044043,-500.0,0.00016712,2]
[402556942,1768707044053,-500.0,0.00016712,2]
[402556944,1768707044063,-500.0,0.00016712,2]
[402556947,1768707044072,-242.32774734,0.00016712,2]
[402556948,1768707044081,-501.08969079,0.00016712,2]
[402556950,1768707044091,-566.85,0.00016712,2]
[402556952,1768707044100,-800.02,0.00016712,2]
[402556954,1768707044110,-501.69588978,0.00016712,2]
[402556956,1768707044120,-541.97,0.00016712,2]
[402556958,1768707044131,-500.0,0.00016712,2]
[402556960,1768707044141,-500.0,0.00016712,2]
[402556962,1768707044150,-500.0,0.00016712,2]
[402556965,1768707044160,-500.0,0.00016712,2]
[402556967,1768707044171,-500.0,0.00016712,2]
[402556968,1768707044180,-500.0,0.00016712,2]
[402556971,1768707044191,-545.25992146,0.00016712,2]
[402556973,1768707044202,-500.0,0.00016712,2]
[402556975,1768707044212,-501.10269269,0.00016712,2]
[402556977,1768707044224,-500.0,0.00016712,2]
[402556979,1768707044235,-500.0,0.00016712,2]
[402556981,1768707044245,-530.01,0.00016712,2]
[402556983,1768707044254,-524.48,0.00016712,2]
[402556985,1768707044264,-520.43598329,0.00016712,2]
[402556987,1768707044276,-500.0,0.00016712,2]
[402556989,1768707044286,-501.16909548,0.00016712,2]
[402556991,1768707044295,-521.13528901,0.00016712,2]
[402556993,1768707044304,-500.0,0.00016712,2]
[402556995,1768707044313,-972.64,0.00016712,2]
[402556996,1768707044322,-500.0,0.00016712,2]
[402556999,1768707044332,-298.79944499,0.00016712,2]
[402557001,1768707044342,-500.0,0.00016712,2]
[402557003,1768707044350,-500.0,0.00016712,2]
[402557005,1768707044359,-500.0,0.00016712,2]
[402557007,1768707044368,-500.0,0.00016712,2]
[402557009,1768707044378,-500.0,0.00016712,2]
[402557010,1768707044387,-500.97272634,0.00016712,2]
[402557012,1768707044396,-500.0,0.00016712,2]
[402557014,1768707044405,-500.0,0.00016712,2]
[402557016,1768707044414,-500.86823554,0.00016712,2]
[402557018,1768707044423,-500.0,0.00016712,2]
[402557020,1768707044433,-732.0,0.00016712,2]
[402557022,1768707044442,-1106.34,0.00016712,2]
[402557024,1768707044451,-500.0,0.00016712,2]
[402557026,1768707044461,-500.0,0.00016712,2]
[402557028,1768707044474,-500.0,0.00016712,2]
[402557030,1768707044484,-500.0,0.00016712,2]
[402557032,1768707044493,-500.0,0.00016712,2]
[402557034,1768707044502,-500.0,0.00016712,2]
[402557036,1768707044513,-500.0,0.00016712,2]
[402557038,1768707044522,-501.63579048,0.00016712,2]
[402557040,1768707044531,-756.25,0.00016712,2]
[402557042,1768707044543,-500.0,0.00016712,2]
[402557044,1768707044552,-500.0,0.00016712,2]
[402557046,1768707044562,-500.0,0.00016712,2]
[402557048,1768707044570,-500.94033953,0.00016712,2]
[402557050,1768707044579,-500.0,0.00016712,2]
[402557052,1768707044588,-501.62232326,0.00016712,2]
[402557054,1768707044597,-501.05883396,0.00016712,2]